fUSD/lending_fUSD_20260126
["ID","MTS","AMOUNT","RATE_DAILY","PERIOD"]
[403672144,1769460666331,-151.0,0.000215,2]
[403672145,1769460666340,-257.988072,0.000215,2]
[403672146,1769460666350,-151.0,0.000215,2]
[403672147,1769460666359,-151.0,0.000215,2]
[403672148,1769460666369,-151.0,0.000215,2]
[403672149,1769460666378,-257.988072,0.000215,2]
[403672150,1769460666388,-151.0,0.000215,2]
[403672151,1769460666398,-151.0,0.000215,2]
[403672152,1769460666408,-151.0,0.000215,2]
[403672153,1769460666418,-257.988072,0.000215,2]
[403672154,1769460666428,-501.289559,0.000215,2]
[403672155,1769460666438,-200.02761,0.000215,2]
[403672156,1769460666448,-151.0,0.000215,2]
[403672157,1769460666457,-151.0,0.000215,2]
[403672158,1769460666466,-207.265082,0.000215,2]
[403672159,1769460666476,-830.966848,0.000215,2]
[403672160,1769460666485,-501.289559,0.000215,2]
[403672161,1769460666495,-151.0,0.000215,2]
[403672162,1769460666504,-207.265082,0.000215,2]
[403672163,1769460666514,-830.966848,0.000215,2]
[403672164,1769460666523,-501.289559,0.000215,2]
[403672165,1769460666532,-151.0,0.000215,2]
[403672166,1769460666541,-151.0,0.000215,2]
[403672167,1769460666550,-207.265082,0.000215,2]
[403672168,1769460666559,-558.99950422,0.000215,2]
[403672169,1769460666573,-271.96734378,0.000215,2]
[403672170,1769460666582,-400.55876,0.000215,2]
[403672171,1769460666592,-501.289559,0.000215,2]
[403672172,1769460666601,-151.0,0.000215,2]
[403672173,1769460666610,-830.966848,0.000215,2]
[403672174,1769460666620,-207.265082,0.000215,2]
[403672175,1769460666633,-151.0,0.000215,2]
[403672176,1769460666644,-400.55876,0.000215,2]
[403672177,1769460666654,-189.998777,0.000215,2]
[403672178,1769460666664,-351.880747,0.000215,2]
[403672179,1769460666673,-400.55876,0.000215,2]
[403672180,1769460666683,-151.0,0.000215,2]
[403672181,1769460666692,-351.880747,0.000215,2]
[403672182,1769460666702,-400.55876,0.000215,2]
[403672183,1769460666711,-222.725257,0.000215,2]
[403672184,1769460666720,-151.0,0.000215,2]
[403672185,1769460666730,-351.880747,0.000215,2]
[403672186,1769460666740,-222.725257,0.000215,2]
[403672187,1769460666749,-151.0,0.000215,2]
[403672188,1769460666758,-351.880747,0.000215,2]
[403672189,1769460666767,-165.815524,0.000215,2]
[403672190,1769460666777,-222.725257,0.000215,2]
[403672191,1769460666786,-151.0,0.000215,2]
[403672192,1769460666796,-151.0,0.000215,2]
[403672193,1769460666806,-151.0,0.000215,2]
[403672194,1769460666816,-222.725257,0.000215,2]
[403672195,1769460666826,-1038.899702,0.000215,2]
[403672196,1769460666835,-447.612696,0.000215,2]
[403672197,1769460666844,-151.0,0.000215,2]
[403672198,1769460666853,-1038.899702,0.000215,2]
[403672199,1769460666862,-447.612696,0.000215,2]
[403672200,1769460666872,-151.0,0.000215,2]
[403672201,1769460666881,-1038.899702,0.000215,2]
[403672202,1769460666891,-447.612696,0.000215,2]
[403672203,1769460666902,-1038.899702,0.000215,2]
[403672204,1769460666911,-447.612696,0.000215,2]
[403672205,1769460666921,-151.0,0.000215,2]
[403672206,1769460666931,-151.0,0.000215,2]
[403672207,1769460666943,-151.0,0.000215,2]
[403672208,1769460666952,-166.350385,0.000215,2]
[403672209,1769460666962,-151.0,0.000215,2]
[403672210,1769460666973,-151.0,0.000215,2]
[403672211,1769460666982,-258.98311,0.000215,2]
[403672212,1769460666991,-258.98311,0.000215,2]
[403672213,1769460667000,-258.98311,0.000215,2]
[403672214,1769460667010,-258.98311,0.000215,2]
[403672215,1769460667019,-712.128832,0.000215,2]
[403672216,1769460667028,-712.128832,0.000215,2]
[403672217,1769460667037,-712.128832,0.000215,2]
[403672218,1769460667047,-712.128832,0.000215,2]
[403672219,1769460667057,-681.319024,0.000215,2]
[403672220,1769460667066,-495.975777,0.000215,2]
[403672221,1769460667076,-243.191019,0.000215,2]
[403672222,1769460667085,-681.319024,0.000215,2]
[403672223,1769460667094,-495.975777,0.000215,2]
[403672224,1769460667104,-550.685106,0.000215,2]
[403672225,1769460667113,-462.904,0.000215,2]
[403672226,1769460667122,-681.319024,0.000215,2]
[403672227,1769460667131,-495.975777,0.000215,2]
[403672228,1769460667140,-151.0,0.000215,2]
[403672229,1769460667150,-550.685106,0.000215,2]
[403672230,1769460667160,-462.904,0.000215,2]
[403672231,1769460667169,-681.319024,0.000215,2]
[403672232,1769460667178,-495.975777,0.000215,2]
[403672233,1769460667187,-550.685106,0.000215,2]
[403672234,1769460667196,-462.904,0.000215,2]
[403672235,1769460667205,-550.685106,0.000215,2]
[403672236,1769460667221,-462.904,0.000215,2]
[403672237,1769460667242,-151.0,0.000215,2]
[403672238,1769460667261,-280.853478,0.000215,2]
[403672239,1769460667281,-151.0,0.000215,2]
[403672240,1769460667300,-151.0,0.000215,2]
[403672241,1769460667317,-514.183142,0.000215,2]
[403672242,1769460667336,-151.0,0.000215,2]
[403672243,1769460667355,-514.183142,0.000215,2]
[403672244,1769460667374,-151.0,0.000215,2]
[403672245,1769460667393,-625.725162,0.000215,2]
[403672246,1769460667413,-514.183142,0.000215,2]
[403672247,1769460667429,-625.725162,0.000215,2]
[403672248,1769460667442,-514.183142,0.000215,2]
[403672249,1769460667462,-625.725162,0.000215,2]
[403672250,1769460667476,-161.944489,0.000215,2]
[403672251,1769460667492,-625.725162,0.000215,2]
[403672252,1769460667506,-151.0,0.000215,2]
[403672253,1769460667527,-161.944489,0.000215,2]
[403672254,1769460667543,-1020.193185,0.000215,2]
[403672255,1769460667558,-151.0,0.000215,2]
[403672256,1769460667574,-151.0,0.000215,2]
[403672257,1769460667591,-161.944489,0.000215,2]
[403672258,1769460667607,-1020.193185,0.000215,2]
[403672259,1769460667625,-151.0,0.000215,2]
[403672260,1769460667640,-363.989533,0.000215,2]
[403672261,1769460667655,-151.0,0.000215,2]
[403672262,1769460667670,-151.0,0.000215,2]
[403672263,1769460667685,-161.944489,0.000215,2]
[403672264,1769460667702,-1020.193185,0.000215,2]
[403672265,1769460667717,-151.0,0.000215,2]
[403672266,1769460667732,-363.989533,0.000215,2]
[403672267,1769460667747,-151.0,0.000215,2]
[403672268,1769460667762,-151.0,0.000215,2]
[403672269,1769460667777,-151.0,0.000215,2]
[403672270,1769460667792,-1020.193185,0.000215,2]
[403672271,1769460667808,-363.989533,0.000215,2]
[403672272,1769460667824,-277.98149,0.000215,2]
[403672273,1769460667842,-151.0,0.000215,2]
[403672274,1769460667858,-151.0,0.000215,2]
[403672275,1769460667874,-363.989533,0.000215,2]
[403672276,1769460667889,-538.715064,0.000215,2]
[403672277,1769460667907,-151.0,0.000215,2]
[403672278,1769460667922,-538.715064,0.000215,2]
[403672279,1769460667936,-151.0,0.000215,2]
[403672280,1769460667950,-538.715064,0.000215,2]
[403672281,1769460667967,-151.0,0.000215,2]
[403672282,1769460667984,-151.0,0.000215,2]
[403672283,1769460668000,-538.715064,0.000215,2]
[403672284,1769460668016,-151.0,0.000215,2]
[403672285,1769460668031,-153.528867,0.000215,2]
[403672286,1769460668045,-151.0,0.000215,2]
[403672287,1769460668059,-153.528867,0.000215,2]
[403672288,1769460668074,-151.0,0.000215,2]
[403672289,1769460668089,-153.528867,0.000215,2]
[403672290,1769460668104,-153.528867,0.000215,2]
[403672291,1769460668119,-151.0,0.000215,2]
[403672292,1769460668134,-151.0,0.000215,2]
[403672293,1769460668148,-151.0,0.000215,2]
[403672294,1769460668163,-234.092506,0.000215,2]
[403672295,1769460668178,-151.0,0.000215,2]
[403672296,1769460668194,-151.0,0.000215,2]
[403672297,1769460668209,-151.0,0.000215,2]
[403672298,1769460668224,-151.0,0.000215,2]
[403672299,1769460668240,-200.995824,0.000215,2]
[403672300,1769460668256,-151.0,0.000215,2]
[403672301,1769460668273,-151.0,0.000215,2]
[403672302,1769460668290,-154.34165,0.000215,2]
[403672303,1769460668306,-154.34165,0.000215,2]
[403672304,1769460668322,-151.0,0.000215,2]
[403672305,1769460668336,-199.799083,0.000215,2]
[403672306,1769460668352,-151.0,0.000215,2]
[403672307,1769460668368,-723.952333,0.000215,2]
[403672308,1769460668384,-154.34165,0.000215,2]
[403672309,1769460668400,-151.0,0.000215,2]
[403672310,1769460668417,-199.799083,0.000215,2]
[403672311,1769460668432,-723.952333,0.000215,2]
[403672312,1769460668447,-680.77735,0.000215,2]
[403672313,1769460668464,-151.0,0.000215,2]
[403672314,1769460668480,-154.34165,0.000215,2]
[403672315,1769460668496,-1015.153398,0.000215,2]
[403672316,1769460668512,-199.799083,0.000215,2]
[403672317,1769460668528,-723.952333,0.000215,2]
[403672318,1769460668542,-500.0,0.000215,2]
[403672319,1769460668557,-680.77735,0.000215,2]
[403672320,1769460668572,-1015.153398,0.000215,2]
[403672321,1769460668587,-199.799083,0.000215,2]
[403672322,1769460668604,-723.952333,0.000215,2]
[403672323,1769460668619,-500.0,0.000215,2]
[403672324,1769460668635,-680.77735,0.000215,2]
[403672325,1769460668650,-1015.153398,0.000215,2]
[403672326,1769460668668,-500.0,0.000215,2]
[403672327,1769460668686,-680.77735,0.000215,2]
[403672328,1769460668702,-1015.153398,0.000215,2]
[403672329,1769460668712,-500.0,0.000215,2]
[403672330,1769460668722,-301.010624,0.000215,2]
[403672331,1769460668732,-200.0,0.00021552,2]
[403672332,1769460668742,-3292.0,0.00021604,2]
[403672333,1769460668752,-675.70381638,0.00021667,9]
[403672334,1769460668762,-3624.1395016,0.00021692,2]
[403672335,1769460668772,-621.78829552,0.00021778,2]
[403672336,1769460668782,-150.00164352,0.0002179,15]
[403672337,1769460668791,-1142.40362045,0.00021805,2]
[403672338,1769460668801,-1852.1121669,0.00021851,2]
[403672339,1769460668812,-267.4,0.0002189,2]
[403672340,1769460668821,-209.3,0.0002189,2]
[403672341,1769460668830,-266.3,0.0002189,2]
[403672342,1769460668840,-289.1,0.0002189,2]
[403672343,1769460668850,-235.5040403,0.0002189,2]
[403672344,1769460669185,-356.4,0.0002189,2]
[403672345,1769460669207,-386.9,0.0002189,2]
[403672346,1769460669224,-374.5,0.0002189,2]
[403672347,1769460669233,-447.4,0.0002189,2]
[403672348,1769460669243,-216.7,0.0002189,2]
[403672349,1769460669252,-211.2,0.0002189,2]
[403672350,1769460669261,-444.9,0.0002189,2]
[403672351,1769460669271,-336.01363627,0.0002189,2]
[403672352,1769460669281,-486.7,0.0002189,2]
[403672353,1769460669290,-373.07297731,0.00021903,2]
[403672354,1769460669300,-3543.0,0.00021905,2]
[403672355,1769460669311,-251.11897888,0.00021907,2]
[403672356,1769460669320,-412.94237149,0.00021916,2]
[403672357,1769460669330,-449.526472,0.00021917,2]
[403672358,1769460669341,-449.526472,0.00021917,2]
[403672359,1769460669351,-449.526472,0.00021917,2]
[403672360,1769460669360,-567.683832,0.00021917,2]
[403672361,1769460669370,-449.526472,0.00021917,2]
[403672362,1769460669380,-567.683832,0.00021917,2]
[403672363,1769460669389,-567.683832,0.00021917,2]
[403672364,1769460669398,-154.680422,0.00021917,2]
[403672365,1769460669407,-567.683832,0.00021917,2]
[403672366,1769460669417,-682.574743,0.00021917,2]
[403672367,1769460669426,-151.0,0.00021917,2]
[403672368,1769460669435,-682.574743,0.00021917,2]
[403672369,1769460669445,-151.0,0.00021917,2]
[403672370,1769460669454,-682.574743,0.00021917,2]
[403672371,1769460669463,-151.0,0.00021917,2]
[403672372,1769460669472,-682.574743,0.00021917,2]
[403672373,1769460669481,-151.0,0.00021917,2]
[403672374,1769460669490,-364.80472,0.00021917,2]
[403672375,1769460669499,-151.0,0.00021917,2]
[403672376,1769460669509,-364.80472,0.00021917,2]
[403672377,1769460669519,-364.80472,0.00021917,2]
[403672378,1769460669528,-293.148945,0.00021917,2]
[403672379,1769460669537,-151.0,0.00021917,2]
[403672380,1769460669546,-364.80472,0.00021917,2]
[403672381,1769460669555,-392.015082,0.00021917,2]
[403672382,1769460669564,-293.148945,0.00021917,2]
[403672383,1769460669573,-392.015082,0.00021917,2]
[403672384,1769460669583,-293.148945,0.00021917,2]
[403672385,1769460669592,-151.0,0.00021917,2]
[403672386,1769460669601,-392.015082,0.00021917,2]
[403672387,1769460669610,-293.148945,0.00021917,2]
[403672388,1769460669619,-151.0,0.00021917,2]
[403672389,1769460669628,-572.58118,0.00021917,2]
[403672390,1769460669637,-392.015082,0.00021917,2]
[403672391,1769460669646,-572.58118,0.00021917,2]
[403672392,1769460669655,-572.58118,0.00021917,2]
[403672393,1769460669665,-572.58118,0.00021917,2]
[403672394,1769460669674,-186.284435,0.00021917,2]
[403672395,1769460669683,-421.990209,0.00021917,2]
[403672396,1769460669692,-186.284435,0.00021917,2]
[403672397,1769460669702,-421.990209,0.00021917,2]
[403672398,1769460669711,-186.284435,0.00021917,2]
[403672399,1769460669721,-421.990209,0.00021917,2]
[403672400,1769460669731,-186.284435,0.00021917,2]
[403672401,1769460669741,-421.990209,0.00021917,2]
[403672402,1769460669751,-151.0,0.00021917,2]
[403672403,1769460669762,-313.648246,0.00021917,2]
[403672404,1769460669772,-151.0,0.00021917,2]
[403672405,1769460669782,-313.648246,0.00021917,2]
[403672406,1769460669792,-151.0,0.00021917,2]
[403672407,1769460669802,-313.648246,0.00021917,2]
[403672408,1769460669812,-313.648246,0.00021917,2]
[403672409,1769460669821,-168.224323,0.00021917,2]
[403672410,1769460669832,-168.224323,0.00021917,2]
[403672411,1769460669841,-168.224323,0.00021917,2]
[403672412,1769460669851,-168.224323,0.00021917,2]
[403672413,1769460669860,-500.0,0.00021917,2]
[403672414,1769460669869,-500.0,0.00021917,2]
[403672415,1769460669878,-500.0,0.00021917,2]
[403672416,1769460669888,-500.0,0.00021917,2]
[403672417,1769460669902,-500.0,0.00021917,2]
[403672418,1769460669911,-500.0,0.00021917,2]
[403672419,1769460669920,-500.0,0.00021917,2]
[403672420,1769460669930,-500.0,0.00021917,2]
[403672421,1769460669940,-500.0,0.00021917,2]
[403672422,1769460669949,-500.0,0.00021917,2]
[403672423,1769460669959,-500.0,0.00021917,2]
[403672424,1769460669970,-500.0,0.00021917,2]
[403672425,1769460669981,-379.37242675,0.00021917,2]
[403672426,1769460669994,-3642.64206096,0.00021918,2]
[403672427,1769460670009,-1357.35793904,0.00021918,2]
[403672428,1769460670018,-151.0,0.00021918,2]
[403672429,1769460670029,-151.0,0.00021918,2]
[403672430,1769460670039,-151.0,0.00021918,2]
[403672431,1769460670049,-151.0,0.00021918,2]
[403672432,1769460670059,-165.0,0.00021918,2]
[403672433,1769460670069,-165.0,0.00021918,2]
[403672434,1769460670078,-165.0,0.00021918,2]
[403672435,1769460670087,-165.0,0.00021918,2]
[403672436,1769460670097,-165.0,0.00021918,2]
[403672437,1769460670108,-155.0,0.00021918,2]
[403672438,1769460670117,-165.0,0.00021918,2]
[403672439,1769460670126,-165.0,0.00021918,2]
[403672440,1769460670135,-165.0,0.00021918,2]
[403672441,1769460670144,-167.69480563,0.00021918,2]
[403672442,1769460670153,-155.0,0.00021918,2]
[403672443,1769460670163,-155.0,0.00021918,2]
[403672444,1769460670172,-155.0,0.00021918,2]
[403672445,1769460670181,-155.0,0.00021918,2]
[403672446,1769460670190,-155.0,0.00021918,2]
[403672447,1769460670199,-155.0,0.00021918,2]
[403672448,1769460670208,-155.0,0.00021918,2]
[403672449,1769460670217,-155.0,0.00021918,2]
[403672450,1769460670228,-155.0,0.00021918,2]
[403672451,1769460670238,-155.0,0.00021918,2]
[403672452,1769460670249,-155.0,0.00021918,2]
[403672453,1769460670260,-216.19559546,0.00021918,2]
[403672454,1769460670270,-750.0,0.00021918,2]
[403672455,1769460670279,-155.0,0.00021918,2]
[403672456,1769460670288,-155.0,0.00021918,2]
[403672457,1769460670297,-652.51270322,0.00021918,2]
[403672458,1769460670306,-156.06265446,0.00021918,2]
[403672459,1769460670315,-155.0,0.00021918,2]
[403672460,1769460670324,-155.0,0.00021918,2]
[403672461,1769460670334,-155.0,0.00021918,2]
[403672462,1769460670343,-155.0,0.00021918,2]
[403672463,1769460670352,-150.0,0.00021918,2]
[403672464,1769460670361,-150.0,0.00021918,2]
[403672465,1769460670371,-200.0,0.00021944,2]
[403672466,1769460670380,-150.0,0.00021973,2]
[403672467,1769460670389,-7033.0,0.00022,2]
[403672468,1769460670398,-53829.9319302,0.00022,4]
[403672469,1769460670410,-1901.20008,0.00022,4]
[403672470,1769460670421,-2780.58887414,0.00022,4]
[403672471,1769460670432,-1985.140582,0.00022,4]
[403672472,1769460670456,-817.63749,0.00022,4]
[403672473,1769460670467,-1826.14,0.00022,4]
[403672474,1769461177052,10000.01,0.0001505,2]
[403672475,1769461177074,1.99,0.0001505,2]
[403672477,1769461311037,-151.00000034,0.00016011,2]
[403672478,1769461494710,166.66,0.00015212,2]
[403672479,1769461494936,166.66,0.00015532,2]
[403672480,1769461504484,-166.66,0.00015852,2]
[403672481,1769461504507,-167.45273979,0.0001593,2]
[403672482,1769461507207,-241.55172431,0.00015891,2]
[403672483,1769461509737,-200.17713873,0.00015891,2]
[403672484,1769461524959,389.186011,0.00015811,2]
[403672485,1769461525577,1148.45,0.00015835,2]
[403672494,1769461831439,-158.27113696,0.00015891,2]
[403672496,1769461831448,-600.0,0.00016009,2]
[403672498,1769461831458,-600.0,0.00016009,2]
[403672500,1769461831468,-2399.27461652,0.00016011,2]
[403672504,1769461831494,-34.57338314,0.00016011,2]
[403672506,1769461831503,-243.563,0.00016011,2]
[403672508,1769461831513,-150.00152033,0.00016063,2]
[403672509,1769461831523,-584.94892345,0.00016081,2]
[403672510,1769461831556,-615.05107655,0.00016081,2]
[403672511,1769461831566,-500.0,0.00016082,2]
[403672512,1769461831575,-150.0,0.00016082,2]
[403672513,1769461831584,-300.0,0.00016135,2]
[403672514,1769461831594,-126.62569538,0.00016136,2]
[403672515,1769461831604,-558.76267928,0.00016136,2]
[403672516,1769461831616,-947.96197807,0.00016136,2]
[403672517,1769461831627,-134.56617443,0.00016136,2]
[403672518,1769461831637,-166.66,0.00016172,2]
[403672519,1769461831646,-216.74260354,0.000162,2]
[403672520,1769461831655,-1906.4609256,0.00016228,2]
[403672521,1769461831667,-3444.2674592,0.00016228,2]
[403672522,1769461831682,-1331.26324519,0.00016228,2]
[403672523,1769461831694,-293.48857706,0.00016228,2]
[403672524,1769461831706,-25321.96161619,0.00016228,2]
[403672525,1769461831717,-408.2574532,0.00016228,2]
[403672526,1769461831728,-323.3292545,0.00016228,2]
[403672527,1769461831740,-7631.69981,0.00016228,2]
[403672528,1769461831763,-607.56498033,0.00016228,2]
[403672531,1769461837574,-186.58226438,0.00016138,2]
[403672532,1769461837584,-500.0,0.00016227,2]
[403672533,1769461837597,-378.20251783,0.00016227,2]
[403672534,1769461837609,-256.55012489,0.00016227,2]
[403672535,1769461837619,-368.98146048,0.00016227,2]
[403672536,1769461837629,-35.97087698,0.00016227,2]
[403672537,1769461837641,-464.02912302,0.00016227,2]
[403672538,1769461837651,-355.96681692,0.00016227,2]
[403672539,1769461837660,-500.0,0.00016227,2]
[403672540,1769461837670,-500.0,0.00016227,2]
[403672541,1769461837680,-221.22,0.00016227,2]
[403672542,1769461837690,-500.0,0.00016227,2]
[403672543,1769461837702,-473.99136411,0.00016227,2]
[403672544,1769461837713,-22.76331545,0.00016228,2]
[403672545,1769461837725,-251.80538329,0.00016228,2]
[403672546,1769461837737,-390.805764,0.00016228,2]
[403672547,1769461837778,-436.75223375,0.00016228,2]
[403672548,1769461837801,-351.88118535,0.00016228,2]
[403672549,1769461837818,-1895.62011352,0.00016228,2]
[403672604,1769461839683,-4619.849466,0.00016228,2]
[403672605,1769461839695,-950762.22921737,0.00016228,2]
[403672606,1769461839705,-2457.6054,0.00016238,2]
[403672607,1769461839716,-255.0,0.00016327,2]
[403672608,1769461839726,-500.0,0.00016328,2]
[403672609,1769461839735,-500.0,0.00016328,2]
[403672610,1769461839745,-500.0,0.00016328,2]
[403672611,1769461839755,-500.0,0.00016328,2]
[403672612,1769461839765,-500.0,0.00016328,2]
[403672613,1769461839775,-500.0,0.00016328,2]
[403672614,1769461839785,-500.0,0.00016328,2]
[403672615,1769461839794,-500.0,0.00016328,2]
[403672616,1769461839803,-500.0,0.00016328,2]
[403672617,1769461839813,-500.0,0.00016328,2]
[403672618,1769461839822,-500.0,0.00016328,2]
[403672619,1769461839833,-500.0,0.00016328,2]
[403672620,1769461839842,-500.0,0.00016328,2]
[403672621,1769461839852,-500.0,0.00016328,2]
[403672622,1769461839862,-500.0,0.00016328,2]
[403672623,1769461839871,-500.0,0.00016328,2]
[403672624,1769461839880,-500.0,0.00016328,2]
[403672625,1769461839890,-500.0,0.00016328,2]
[403672626,1769461839902,-399.38656468,0.00016328,2]
[403672627,1769461839912,-151.0,0.00016328,2]
[403672628,1769461839922,-151.0,0.00016328,2]
[403672629,1769461839939,-151.0,0.00016328,2]
[403672630,1769461839951,-151.0,0.00016328,2]
[403672631,1769461839963,-151.0,0.00016328,2]
[403672632,1769461839972,-151.0,0.00016328,2]
[403672633,1769461839983,-151.0,0.00016328,2]
[403672634,1769461839993,-151.0,0.00016328,2]
[403672635,1769461840003,-151.0,0.00016328,2]
[403672636,1769461840013,-151.0,0.00016328,2]
[403672637,1769461840022,-151.0,0.00016328,2]
[403672638,1769461840034,-151.0,0.00016328,2]
[403672639,1769461840043,-387.93162383,0.00016338,2]
[403672640,1769461840054,-721.93285213,0.00016338,2]
[403672641,1769461840066,-150.0,0.00016338,2]
[403672642,1769461840076,-500.0,0.00016438,2]
[403672643,1769461840088,-500.0,0.00016438,2]
[403672644,1769461840100,-500.0,0.00016438,2]
[403672645,1769461840110,-500.0,0.00016438,2]
[403672646,1769461840119,-500.0,0.00016438,2]
[403672647,1769461840129,-500.0,0.00016438,2]
[403672648,1769461840140,-500.0,0.00016438,2]
[403672649,1769461840152,-500.0,0.00016438,2]
[403672650,1769461840161,-500.0,0.00016438,2]
[403672651,1769461840170,-500.0,0.00016438,2]
[403672652,1769461840180,-225.72610929,0.00016438,2]
[403672653,1769461840191,-500.0,0.00016438,2]
[403672654,1769461840201,-500.0,0.00016438,2]
[403672655,1769461840211,-500.0,0.00016438,2]
[403672656,1769461840220,-500.0,0.00016438,2]
[403672657,1769461840230,-500.0,0.00016438,2]
[403672658,1769461840239,-166.66,0.00016493,2]
[403672659,1769461840249,-151.0,0.00016507,2]
[403672660,1769461840259,-151.0,0.00016507,2]
[403672661,1769461840269,-322.6107,0.00016594,2]
[403672662,1769461840278,-250.0,0.00016594,2]
[403672663,1769461840288,-250.0,0.00016594,2]
[403672664,1769461840297,-222.6043359,0.00016594,2]
[403672665,1769461840307,-250.0,0.00016594,2]
[403672666,1769461840316,-250.0,0.00016594,2]
[403672667,1769461840325,-250.0,0.00016594,2]
[403672668,1769461840334,-250.0,0.00016594,2]
[403672670,1769461840343,-250.0,0.00016594,2]
[403672672,1769461840352,-250.0,0.00016594,2]
[403672673,1769461840361,-250.0,0.00016594,2]
[403672674,1769461840371,-250.0,0.00016594,2]
[403672675,1769461840381,-250.0,0.00016594,2]
[403672676,1769461840392,-250.0,0.00016594,2]
[403672677,1769461840403,-695.39793187,0.00016594,2]
[403672678,1769461840414,-3543.0,0.00016594,2]
[403672679,1769461840425,-250.0,0.00016594,2]
[403672680,1769461840436,-250.0,0.00016594,2]
[403672681,1769461840447,-250.0,0.00016594,2]
[403672682,1769461840457,-262.18822744,0.00016594,2]
[403672683,1769461840467,-500.0,0.00016594,2]
[403672684,1769461840477,-500.0,0.00016594,2]
[403672685,1769461840487,-500.0,0.00016594,2]
[403672686,1769461840496,-500.0,0.00016594,2]
[403672687,1769461840506,-500.0,0.00016594,2]
[403672688,1769461840516,-500.0,0.00016594,2]
[403672689,1769461840526,-500.0,0.00016594,2]
[403672690,1769461840536,-250.0,0.00016594,2]
[403672691,1769461840546,-500.0,0.00016594,2]
[403672692,1769461840556,-250.0,0.00016594,2]
[403672693,1769461840566,-500.0,0.00016594,2]
[403672694,1769461840576,-823.77908852,0.00016594,2]
[403672695,1769461840585,-514.28558308,0.00016594,2]
[403672696,1769461840594,-250.0,0.00016594,2]
[403672697,1769461840605,-250.0,0.00016594,2]
[403672698,1769461840615,-250.0,0.00016594,2]
[403672699,1769461840624,-250.0,0.00016594,2]
[403672700,1769461840633,-250.0,0.00016594,2]
[403672701,1769461840643,-250.0,0.00016594,2]
[403672702,1769461840652,-250.0,0.00016594,2]
[403672703,1769461840662,-250.0,0.00016594,2]
[403672704,1769461840671,-250.0,0.00016594,2]
[403672705,1769461840680,-174.61919141,0.00016594,2]
[403672706,1769461840689,-250.0,0.00016594,2]
[403672707,1769461840699,-151.0,0.00016594,2]
[403672708,1769461840708,-250.0,0.00016594,2]
[403672709,1769461840718,-250.0,0.00016594,2]
[403672710,1769461840727,-250.0,0.00016594,2]
[403672711,1769461840737,-250.0,0.00016594,2]
[403672712,1769461840746,-250.0,0.00016594,2]
[403672713,1769461840755,-250.0,0.00016594,2]
[403672714,1769461840764,-250.0,0.00016594,2]
[403672715,1769461840774,-250.0,0.00016594,2]
[403672716,1769461840783,-250.0,0.00016594,2]
[403672717,1769461840793,-250.0,0.00016594,2]
[403672718,1769461840802,-250.0,0.00016594,2]